Cogmind - Beta 15 @@@ ROGUE MODE // 2025.05.23 @ 11:10:34 Player: Derk Result: Destroyed by 4F-DO4(j) with Overtuned Pulse Rifle Performance ------------- Evolutions (1) 500 Regions Visited (6) 1200 Robots Destroyed (73) 365 Value Destroyed (1996) 1996 Prototype IDs (17) 340 Alien Tech Used (0) 0 Bonus (800) 800 TOTAL SCORE: 5201 Bonus ------- Registered with UFD 300 Met Optimus in HQ 500 Cogmind --------- Core Integrity 0/400 Matter 285/300 Energy 11/100 System Corruption 4% Temperature Hot (268) Movement Core (400) Ox7 Location -9/Scraptown Parts ------- > --- POWER (1) -------- (None) > --- PROPULSION (3) --- (None) > --- UTILITY (3) ------ Large Storage Unit Expert System (Blank) > --- WEAPON (2) ------- Companion Sword > --- INVENTORY (15) --- Energy Well (350) Enhanced Optical Array Advanced Terrain Scanner Improved Terrain Scan Processor Seismic Detector Personal Teleporter v0.10 (0/15) Rocket Launcher LU-1G1's Laser Shovel Vortex Trap DRS Beacon (Ready) Peak State ------------ > --- POWER ------------ Improved Deuterium Engine > --- PROPULSION ------- Armored Treads Armored Wheel Armored Wheel > --- UTILITY ---------- Large Storage Unit Hardened Medium Armor Plating Force Field > --- WEAPON ----------- Flak Gun Companion Sword > --- INVENTORY -------- Light Treads Improved Treads Improved Treads Energy Well Enhanced Optical Array Advanced Terrain Scanner Improved Terrain Scan Processor Seismic Detector Hardened Medium Armor Plating Personal Teleporter v0.10 EM Pulse Cannon Rocket Launcher LU-1G1's Laser Shovel Vortex Trap DRS Beacon [Rating: 35] Favorites ----------- Power Heavy Ion Engine Engine Heavy Ion Engine Propulsion Light Treads Treads Light Treads Wheel Armored Wheel Utility Hardened Medium Armor Plating Device Seismic Detector Storage Large Storage Unit Protection Hardened Medium Armor Plating Weapon Autogun Energy Gun Improved EM Shotgun Energy Cannon Light EM Pulse Cannon Ballistic Gun Autogun Launcher Rocket Launcher Special Weapon Mining Laser Impact Weapon Shock Maul Slashing Weapon Companion Sword Build | -11 -10 -10 -9 -9 -9 -9 ------- Run | Yrd Mat Min Mat Sto Rec Scr Slots Evolved 2 | . . . 2 . . . Power . | . . . . . . . Propulsion 1 | . . . 1 . . . Utility 1 | . . . 1 . . . Weapon . | . . . . . . . Parts Attached 59 | 7 10 . 16 16 . 10 Power 9 | 1 1 . 2 4 . 1 Engine 9 | 1 1 . 2 4 . 1 Core . | . . . . . . . Reactor . | . . . . . . . Propulsion 18 | 2 . . 9 4 . 3 Treads 13 | 2 . . 6 3 . 2 Leg . | . . . . . . . Wheel 5 | . . . 3 1 . 1 Hover . | . . . . . . . Flight . | . . . . . . . Utility 14 | 2 4 . 3 2 . 3 Device 6 | 1 2 . 2 . . 1 Storage 2 | 1 1 . . . . . Processor 1 | . . . . . . 1 Hackware . | . . . . . . . Protection 5 | . 1 . 1 2 . 1 Artifact . | . . . . . . . Weapon 18 | 2 5 . 2 6 . 3 Energy Gun 7 | 2 1 . 2 2 . . Energy Cannon 3 | . . . . 2 . 1 Ballistic Gun 4 | . 3 . . . . 1 Ballistic Cannon . | . . . . . . . Launcher 1 | . . . . 1 . . Special Weapon 1 | . 1 . . . . . Impact Weapon 1 | . . . . 1 . . Slashing Weapon 1 | . . . . . . 1 Piercing Weapon . | . . . . . . . Special Melee Weapon . | . . . . . . . Unidentified Prototypes 6 | . . . 1 3 . 2 Parts Lost 21 | . 3 . 2 5 . 11 Power 1 | . . . . . . 1 Propulsion 10 | . . . 2 2 . 6 Utility 6 | . 1 . . 2 . 3 Weapon 4 | . 2 . . 1 . 1 Highest Loss Streak 11 | . 1 . 1 3 . 11 To Critical Strikes . | . . . . . . . Average Backups 11 | 3 7 9 14 14 13 13 Power . | . 1 1 . . . . Propulsion 2 | 1 1 1 1 2 3 3 Utility 4 | . 2 4 7 4 3 5 Weapon 4 | 1 2 3 4 7 7 5 Tool/Special . | . . . . . . . Unused Backups 25 | . 5 . 6 1 . 13 Power 1 | . 1 . . . . . Propulsion 2 | . 1 . 1 . . . Utility 12 | . 1 . 5 1 . 5 Weapon 8 | . 2 . . . . 6 Tool/Special 2 | . . . . . . 2 Average Slot Usage (%) 98 | . 100 100 98 99 100 97 Engine 11 | . 14 14 11 11 11 10 Treads 22 | . 28 28 21 21 22 19 Wheel 8 | . . . 10 10 11 13 Device 8 | . 10 14 11 8 . 5 Storage 11 | . 14 14 11 11 11 11 Protection 11 | . 3 . 10 13 22 16 Energy Gun 5 | . 12 . 6 11 . . Energy Cannon 2 | . . . . . 11 6 Ballistic Gun 8 | . 14 28 15 . . 2 Impact Weapon 4 | . . . . 9 11 6 Slashing Weapon 1 | . . . . . . 4 Peak Build Rating 35 | 7 12 11 20 27 25 35 Average Rating 20 | 5 9 11 18 24 25 28 On Entrance 14 | . 7 11 11 20 25 25 Naked Turns . | . . . . . . . Heaviest Build 53 | 12 36 34 43 51 51 53 Greatest Support 60 | 40 40 40 60 20 12 24 Greatest Overweight (x) 4 | . . . 3 4 4 4 Average Overweight (x) 2 | . . . 2 3 4 3 Largest Inventory Capacity 15 | 8 15 15 15 15 15 15 Average Capacity 13 | 7 10 15 15 15 15 15 Most Carried 15 | 5 9 9 15 15 13 15 Average Carried 12 | 3 7 9 14 14 13 14 Final Capacity 15 | 8 15 15 15 15 15 15 Final Carried 15 | 5 9 9 15 13 13 10 Class Distribution -------------------- 63% | Mutant 35% | Commander-Mutant Dominant Class ---------------- Mutant | -10/Materials Mutant | -10/Mines Mutant | -9/Materials Mutant | -9/Storage Commander-Mutant | -9/Recycling Commander-Mutant | -9/Scraptown Resources | -11 -10 -10 -9 -9 -9 -9 ----------- Run | Yrd Mat Min Mat Sto Rec Scr Matter Collected 1383 | 270 124 44 544 331 . 70 Remotely . | . . . . . . . Salvage Created 2649 | 82 496 . 898 913 50 210 Parts 153 | 11 23 . 65 39 2 13 Haulers Intercepted 3 | . 1 . 1 1 . . Recyclers Shooed 4 | . 1 . 2 1 . . Parts Field Recycled . | . . . . . . . Retrieved Matter . | . . . . . . . Parts Self-Destructed . | . . . . . . . Prevented . | . . . . . . . Kills | -11 -10 -10 -9 -9 -9 -9 ------- Run | Yrd Mat Min Mat Sto Rec Scr Combat Hostiles Destroyed 57 | . 12 . 20 21 1 3 Melee 7 | . . . . 4 . 3 Guns 35 | . 11 . 19 5 . . AOE 3 | . . . 1 2 . . Classes Destroyed 11 | 1 5 . 4 . . 1 Worker 4 | . 1 . 2 1 . . Builder 2 | . . . 1 1 . . Tunneler 4 | 4 . . . . . . Hauler 3 | . 1 . 1 1 . . Recycler 1 | . 1 . . . . . Watcher 2 | . . . 2 . . . Swarmer 12 | . 3 . 6 3 . . Grunt 26 | . 9 . 10 7 . . Brawler 3 | . . . 2 1 . . Sentry 13 | . . . 2 10 1 . Scrapper 3 | . . . . . . 3 Best Kill Streak 7 | 2 5 . 7 4 1 2 Combat Bots Only 5 | . 5 . 5 3 1 2 Max Kills in Single Turn 2 | 1 2 . 2 2 1 1 Gunslinging 1 | . 1 . . . . . Exploded 2 | . . . 1 2 . . Melee 1 | . . . . 1 . 1 Uniques/NPCs Destroyed . | . . . . . . . Combat | -11 -10 -10 -9 -9 -9 -9 -------- Run | Yrd Mat Min Mat Sto Rec Scr Hostile Shots Fired 488 | . 90 . 94 143 2 159 Missed 124 | . 19 . 33 37 1 34 Hits 364 | . 71 . 61 106 1 125 Melee 5 | . . . 5 . . . Projectile 359 | . 71 . 56 106 1 125 Critical Strikes 12 | . . . 1 4 . 7 Damage Taken 4227 | . 786 . 563 1195 14 1669 Core 557 | . 153 . 52 118 . 234 Absorbed by Shields 700 | . 3 . 138 276 . 283 Regen/Repaired (Parts) 102 | . . . . 102 . . Core Remaining (%) 69 | 100 . 38 . . . . Volleys Fired 150 | 11 57 . 65 17 . . Largest 2 | 2 2 . 2 2 . . Hottest 100 | 90 100 . 68 90 . . Shots Fired 285 | 22 109 . 121 33 . . Gun 280 | 22 105 . 121 32 . . Cannon . | . . . . . . . Launcher 1 | . . . . 1 . . Special 4 | . 4 . . . . . Kinetic 121 | . 26 . 94 1 . . Thermal 100 | 22 78 . . . . . Explosive 1 | . . . . 1 . . Electromagnetic 63 | . 5 . 27 31 . . Robot Hit Streak 14 | 7 14 . 11 8 . . Robot Miss Streak 5 | 2 5 . 5 3 . . Penetration Max . | . . . . . . . Secondary Targets 6 | . 2 . 4 . . . Max Gunslinging Chain 1 | . 1 . 1 . . . Shots Hit Robots 248 | 14 78 . 83 62 1 10 Core Hits 99 | 4 27 . 41 24 . 3 Critical Kills 1 | . . . . 1 . . Critical Parts Destroyed 15 | . 1 . . 14 . . Critical Strikes 26 | 1 8 . . 17 . . Burn 7 | 1 6 . . . . . Destroy 1 | . 1 . . . . . Corrupt 1 | . 1 . . . . . Smash 17 | . . . . 17 . . Melee Attacks 91 | . . . . 66 2 23 Impact 68 | . . . . 66 2 . Slashing 23 | . . . . . . 23 Piercing . | . . . . . . . Sneak Attacks 1 | . . . . 1 . . Combat Hostiles . | . . . . . . . Follow-up Attacks 1 | . . . . . . 1 Damage Inflicted 4954 | 165 893 . 1337 2134 48 377 Guns 2729 | 165 893 . 1281 390 . . Cannons . | . . . . . . . Explosions 257 | . . . 56 201 . . Melee 1963 | . . . . 1543 48 372 Ramming 5 | . . . . . . 5 Kinetic 1154 | . 172 . 968 14 . . Thermal 1011 | 165 700 . 56 90 . . Explosive 111 | . . . . 111 . . Electromagnetic 710 | . 21 . 313 376 . . Impact 1591 | . . . . 1543 48 . Slashing 372 | . . . . . . 372 Piercing . | . . . . . . . Highest Corruption 5 | . . . 3 5 5 4 Average Corruption 3 | . . . 2 4 5 2 Corruption Purged . | . . . . . . . Corruption Blocked . | . . . . . . . Effects 32 | . . . 4 23 3 2 Message Errors 8 | . . . 1 6 1 . Matter Fused 3 | . . . 1 1 . 1 Heat Flow Errors 3 | . . . 1 1 . 1 Energy Discharges 9 | . . . . 9 . . Data Loss (minor) 4 | . . . . 2 2 . Data Loss (major) 1 | . . . . 1 . . Misfires 3 | . . . 1 2 . . Weapon Failures 1 | . . . . 1 . . Overload Shots . | . . . . . . . Overflow Damage 685 | . . . 2 683 . . Projectiles . | . . . . . . . Explosions 23 | . . . 2 21 . . Melee 662 | . . . . 662 . . Knockbacks 1 | . . . . 1 . . Impact 1 | . . . . 1 . . Kinetic . | . . . . . . . Secondary . | . . . . . . . Self-Inflicted Damage . | . . . . . . . Shots . | . . . . . . . Rammed 2 | . . . 1 . . 1 Targets Rammed 2 | . . . 1 . . 1 Kicked . | . . . . . . . Crushed . | . . . . . . . Highest Temperature 358 | 120 358 . 268 280 . 267 Average Temperature 80 | 52 90 . 56 106 . 100 Received Heat Transfer 1891 | . 394 . 174 426 9 888 Effects 3 | . 3 . . . . . Energy Bleed 3 | . 3 . . . . . Siege Activations . | . . . . . . . Martial Activations . | . . . . . . . Shielding Activations . | . . . . . . . Robots Disrupted 2 | . . . . 2 . . Combat Hostiles 2 | . . . . 2 . . Robots Corrupted 12 | . . . . 11 1 . Combat Hostiles 11 | . . . . 10 1 . Parts Fried 13 | . . . 1 12 . . Impact Corruptions 20 | . . . . 18 1 1 Robots Melted 1 | . 1 . . . . . Combat Hostiles 1 | . 1 . . . . . Parts Melted 14 | 1 11 . . . . 2 Heat Transferred 2959 | 520 2339 . 50 50 . . Parts Sabotaged . | . . . . . . . Parts Stolen . | . . . . . . . Parts Stripped . | . . . . . . . Power Chain Reactions 2 | . . . 1 1 . . Alert | -11 -10 -10 -9 -9 -9 -9 ------- Run | Yrd Mat Min Mat Sto Rec Scr Maximum Alert Level 1 | . . . . 1 . . Low Security (%) 98 | 100 100 100 100 94 100 . Level 1 1 | . . . . 5 . . Level 2 . | . . . . . . . Level 3 . | . . . . . . . Level 4 . | . . . . . . . Level 5 . | . . . . . . . High Security . | . . . . . . . Max Security . | . . . . . . . Peak Influence 238 | 10 112 . 135 238 65 . Initial 55 | . . . . 42 55 . Average 45 | 1 28 . 60 88 36 . Influence Increases 1819 | 20 404 . 596 779 20 . Destroy 0b10 Robot/C 1080 | . 240 . 400 420 20 . Destroy 0b10 Robot/NC 80 | 20 15 . 30 15 . . Destroy Leader 310 | . 62 . 106 142 . . Successful Hack 87 | . 38 . 14 35 . . Select Force Hacks 60 | . 30 . 30 . . . Disable Machine 60 | . . . . 60 . . Destroy Structure 22 | . 4 . 1 17 . . Lose Combat Pursuer 120 | . 15 . 15 90 . . Influence Decreases 1819 | 20 404 . 493 739 163 . Entered New Map 149 | . . . . 61 88 . Time Decay 1208 | 20 384 . 334 395 75 . Lost Part 80 | . 20 . 20 40 . . Purge Threat 382 | . . . 139 243 . . Squads Dispatched 12 | . 3 . 5 4 . . Investigation 6 | . 3 . 3 . . . Extermination . | . . . . . . . Reinforcement 3 | . . . 2 1 . . Assault . | . . . . . . . Garrison 3 | . . . . 3 . . Intercept . | . . . . . . . Searches Triggered . | . . . . . . . Construction Impeded . | . . . . . . . Haulers Reinforced . | . . . . . . . Active Scanning Responses . | . . . . . . . Cargo Convoy Interrupts . | . . . . . . . Stealth | -11 -10 -10 -9 -9 -9 -9 --------- Run | Yrd Mat Min Mat Sto Rec Scr Distress Signals 4 | . 1 . 3 . . . Communications Jammed . | . . . . . . . Distress Signals . | . . . . . . . Times Spotted 112 | . 21 . 35 29 1 26 Peak Tracking Total 9 | . 7 . 5 6 1 9 Tactical Retreats 6 | . 1 . 1 3 . 1 Traps | -11 -10 -10 -9 -9 -9 -9 ------- Run | Yrd Mat Min Mat Sto Rec Scr Traps Triggered 9 | . 1 . 2 6 . . Indirectly . | . . . . . . . Trap Hack Attempts . | . . . . . . . Triggered . | . . . . . . . Disarmed . | . . . . . . . Reprogrammed . | . . . . . . . Reused . | . . . . . . . Traps Extracted . | . . . . . . . Installed . | . . . . . . . Triggered . | . . . . . . . Most Traps Carried 1 | . . . . . . 1 Machines | -11 -10 -10 -9 -9 -9 -9 ---------- Run | Yrd Mat Min Mat Sto Rec Scr Machines Disabled 6 | . . . . 4 . 2 Max in Single Turn 1 | . . . . 1 . 1 Machines Repaired . | . . . . . . . Machines Dismantled . | . . . . . . . Machines Sabotaged . | . . . . . . . Overloaded Fab Kills . | . . . . . . . Hacking | -11 -10 -10 -9 -9 -9 -9 --------- Run | Yrd Mat Min Mat Sto Rec Scr Machines Accessed 31 | . 10 . 5 9 . 7 Terminals 20 | . 8 . 4 8 . . Fabricators . | . . . . . . . Repair Stations 2 | . 1 . . 1 . . Recycling Units 2 | . 1 . 1 . . . Scanalyzers . | . . . . . . . Garrison Access . | . . . . . . . Total Hacks 95 | . 29 . 12 21 . 33 Successful 66 | . 15 . 4 14 . 33 Failed 29 | . 14 . 8 7 . . Catastrophic 5 | . 1 . 2 2 . . Database Lockouts . | . . . . . . . Manual 36 | . 22 . 6 8 . . Terminals 56 | . 26 . 11 19 . . Fabricators . | . . . . . . . Repair Stations 4 | . 2 . . 2 . . Recycling Units 2 | . 1 . 1 . . . Scanalyzers . | . . . . . . . Garrison Access . | . . . . . . . Terminal Hacks 51 | . 5 . 3 10 . 33 Record 31 | . . . . . . 31 Robot Analysis 2 | . . . . 2 . . Prototype ID Bank 2 | . 1 . 1 . . . Open Door 4 | . . . . 3 . 1 Branch Access Points 1 | . 1 . . . . . Unreport Threat 3 | . . . 1 2 . . Locate Traps 3 | . 2 . . 1 . . Hauler Manifests 1 | . . . 1 . . . Registered Components 1 | . . . . 1 . . Zone Layout 2 | . 1 . . 1 . . Proto ID Catalog 1 | . . . . . . 1 Fabricator Hacks . | . . . . . . . Repair Station Hacks 3 | . 1 . . 2 . . Scan Component 2 | . 1 . . 1 . . Repair 1 | . . . . 1 . . Recycling Unit Hacks . | . . . . . . . Scanalyzer . | . . . . . . . Garrison Access Hacks . | . . . . . . . Unauthorized Hacks 12 | . 9 . 1 2 . . Terminals 10 | . 8 . . 2 . . Botnet 3 | . 1 . . 2 . . Operators 1 | . 1 . . . . . Skim 6 | . 6 . . . . . Fabricators . | . . . . . . . Repair Stations . | . . . . . . . Recycling Units 2 | . 1 . 1 . . . Tunnel 2 | . 1 . 1 . . . Scanalyzers . | . . . . . . . Garrison Access . | . . . . . . . Data Cores Recovered . | . . . . . . . Used . | . . . . . . . Hacking Detections 17 | . 8 . 3 6 . . Full Trace Events 3 | . 1 . 1 1 . . Feedback Events 1 | . . . 1 . . . Corruption 1 | . . . 1 . . . Feedback Blocked . | . . . . . . . Robot Schematics Acquired . | . . . . . . . Robots Built . | . . . . . . . Authchips . | . . . . . . . Time . | . . . . . . . Total Robot Build Rating . | . . . . . . . Part Schematics Acquired . | . . . . . . . Parts Built . | . . . . . . . Authchips . | . . . . . . . Time . | . . . . . . . Total Part Build Rating . | . . . . . . . Parts Repaired 1 | . . . . 1 . . Time 26 | . . . . 26 . . Parts Recycled . | . . . . . . . Recycled Matter . | . . . . . . . Retrieved Matter . | . . . . . . . Retrieved Components . | . . . . . . . Parts Scanalyzed . | . . . . . . . Part Schematics Acquired . | . . . . . . . Parts Damaged . | . . . . . . . Bothacking | -11 -10 -10 -9 -9 -9 -9 ------------ Run | Yrd Mat Min Mat Sto Rec Scr Used RIF Installer . | . . . . . . . Robots Hacked . | . . . . . . . Non-combat . | . . . . . . . Combat . | . . . . . . . Robot Hacks Applied . | . . . . . . . Relay Couplers Released . | . . . . . . . Fabnet Peak Effective % . | . . . . . . . Robots Rewired 5 | . . . . . 5 . Allies Hacked . | . . . . . . . Hacks Repelled . | . . . . . . . Allies | -11 -10 -10 -9 -9 -9 -9 -------- Run | Yrd Mat Min Mat Sto Rec Scr Total Allies 5 | . . . . . 5 . Largest Group 5 | . . . . . 5 5 Highest-Rated Group 68 | . . . . . 68 68 Highest-Rated Ally 27 | . . . . . 27 27 Total Orders 1 | . . . . . . 1 STAY 1 | . . . . . . 1 Ally Attacks 9 | . . . . . . 9 Total Damage 108 | . . . . . . 108 Kills 2 | . . . . . . 2 Allies Corrupted . | . . . . . . . Allies Melted 5 | . . . . . . 5 Intel | -11 -10 -10 -9 -9 -9 -9 ------- Run | Yrd Mat Min Mat Sto Rec Scr Active Infowar (turns) 2161 | 12 1108 495 546 . . . Seismic 2161 | 12 1108 495 546 . . . Robot Analysis Total 2 | . . . . 2 . . Derelict Logs Recovered . | . . . . . . . Drone Launches . | . . . . . . . Drone Recoveries . | . . . . . . . Exploration | -11 -10 -10 -9 -9 -9 -9 ------------- Run | Yrd Mat Min Mat Sto Rec Scr Turns Passed 7027 | 177 1552 495 890 1106 162 2645 Spaces Moved 3872 | 84 626 309 454 559 61 1779 Core 4 | 4 . . . . . . Treads 1051 | 80 626 309 34 1 . 1 Legs . | . . . . . . . Wheels 2817 | . . . 420 558 61 1778 Hover . | . . . . . . . Flight . | . . . . . . . Fastest Speed 50 | 50 160 160 130 120 150 105 Average Speed 143 | 154 160 160 135 138 150 138 Slowest Speed 320 | 160 160 160 320 320 150 240 Overloaded Moves . | . . . . . . . Propulsion Burnouts . | . . . . . . . Robots Hopped . | . . . . . . . Potential Cave-ins . | . . . . . . . Cave-ins Triggered . | . . . . . . . Exploration Rate (%) 58 | 5 90 73 50 86 15 92 Regions Visited 6 Branch Regions 4 Pre-discovered Areas 2 | . 1 . 1 . . . Known Exits Taken 3 | . 1 1 1 . . . Unknown Exits Taken 3 | 1 . . . 1 1 . Scrap Searched 4 | . . 1 . . . 3 Spaces Dug 21 | . 4 . . 16 . 1 Terrain Destroyed 23 | . 4 . . 18 . 1 Melee 6 | . . . . 5 . 1 Projectile 4 | . 4 . . . . . AOE 13 | . . . . 13 . . Terrain Rammed . | . . . . . . . Walls Destroyed . | . . . . . . . Machines Disabled . | . . . . . . . Actions | -11 -10 -10 -9 -9 -9 -9 --------- Run | Yrd Mat Min Mat Sto Rec Scr Total 4919 | 106 1069 310 636 728 128 1942 Wait 563 | . 355 2 49 45 14 98 Move 3866 | 83 625 308 453 558 60 1779 Hop . | . . . . . . . Pick Up 59 | 5 12 . 23 5 . 14 Fast Attach 26 | 7 1 . 4 11 . 3 Attach 17 | . 3 . 2 6 . 6 Detach . | . . . . . . . Swap 36 | . 7 . 16 10 . 3 Drop 58 | . 9 . 23 10 . 16 Fire 150 | 11 57 . 65 17 . . Melee 90 | . . . . 66 2 22 Ram . | . . . . . . . Kick . | . . . . . . . Crush 2 | . . . 1 . . 1 Escape Stasis . | . . . . . . . Rewire 52 | . . . . . 52 . Trap . | . . . . . . . Miscellaneous . | . . . . . . . Route ------- -11/Scrapyard -10/Materials (discovered 5 exits: *Mat x3 / *Min / [*Sub]) -10/Mines (discovered 2 exits: *Mat x2) -9/Materials (discovered 5 exits: Mat x2 / *Min / *Sto x2) -9/Storage (discovered 2 exits: *Mat / [*Rec]) -9/Recycling -9/Scraptown (discovered 2 exits: [*Fac x2]) History --------- Turn | Location | Event 3 | -11/Scrapyard | Discovered new exit (range 15) 178 | -11/Scrapyard | Entered Materials 301 | -10/Materials | Build established: Mutant 557 | -10/Materials | Discovered new exit (range 16) 788 | -10/Materials | Discovered new exit (range 15) 815 | -10/Materials | Core integrity fell below 50% 930 | -10/Materials | Identified exit to Mines 1189 | -10/Materials | Discovered new exit (range 7) 1349 | -10/Materials | Identified exit to Materials 1534 | -10/Materials | Loaded intel: 24 trap records 1574 | -10/Materials | Learned location of 2 exits from Materials 1688 | -10/Materials | Learned 2 Mines zone layouts 1730 | -10/Materials | Entered Mines 2225 | -10/Mines | Entered Materials 2225 | -9/Materials | Evolved 2 slots: Propulsion x1, Utility x1 2226 | -9/Materials | Identified exit to Materials 2226 | -9/Materials | Identified exit to Mines 2226 | -9/Materials | Identified exit to Storage 3115 | -9/Materials | Entered Storage 3537 | -9/Storage | Discovered exit to Materials (range 15) 3796 | -9/Storage | Repaired Lgt. Treads? 3847 | -9/Storage | Garrison activated, responded to threat 4005 | -9/Storage | Lost 3 parts (2n1u) 4215 | -9/Storage | Used back door to open Recycling access 4215 | -9/Storage | Discovered new exit (range 5) 4221 | -9/Storage | Entered Recycling 4339 | -9/Recycling | Scanned before Scraplab entrance 4360 | -9/Recycling | Entered Scraplab 4372 | -9/Recycling | Discovered new exit (range 2) 4383 | -9/Recycling | Entered Scraptown 4383 | -9/Scraptown | Accompanied by 5 allies 4383 | -9/Scraptown | System corruption cleaned by C-Scrubber 4455 | -9/Scraptown | Heard Great Nut preacher, LISTEN AND RECITE! 4592 | -9/Scraptown | Build established: Commander-Mutant 4669 | -9/Scraptown | Discovered new exit (range 13) 4762 | -9/Scraptown | Visited Observation Area 4872 | -9/Scraptown | Visited Red Mages 4926 | -9/Scraptown | Visited SPCMW 5266 | -9/Scraptown | Visited Assassins FH 5314 | -9/Scraptown | Visited Cyclists 5382 | -9/Scraptown | Visited The Evicted 5412 | -9/Scraptown | Visited Cave Peace 5467 | -9/Scraptown | Visited UFD Registry 5467 | -9/Scraptown | Registered with UFD as "Nukeback" 5608 | -9/Scraptown | Visited LU-1G1's Boring Crew 5665 | -9/Scraptown | Visited Science Testing Area 5716 | -9/Scraptown | Visited A0-MCA Data Center 5728 | -9/Scraptown | Given a B rating by A0-MCA 5753 | -9/Scraptown | Visited Junk Repository 5817 | -9/Scraptown | Visited Scrap Suit Storage 5852 | -9/Scraptown | Visited Sword Containment 6032 | -9/Scraptown | Visited Abandonware Association 6047 | -9/Scraptown | Learned abandonware demo "REVENGE.EXE" 6047 | -9/Scraptown | Learned abandonware demo "POISON.EXE" 6078 | -9/Scraptown | Visited Derelict Rescue Squad 6087 | -9/Scraptown | Found DRS Beacon 6112 | -9/Scraptown | Visited Science Guys 6207 | -9/Scraptown | Entered Cyclist Reading Room 6551 | -9/Scraptown | Discovered new exit (range 5) 6639 | -9/Scraptown | Met Optimus 6639 | -9/Scraptown | Accepted into 0bPrime 6770 | -9/Scraptown | Civil war broke out across Scraptown 6787 | -9/Scraptown | Found Prototype Special Weapon 6850 | -9/Scraptown | Found Personal Teleporter v0.10 6867 | -9/Scraptown | Optimus destroyed in the chaos of civil war 6958 | -9/Scraptown | Found Prototype Processor 6981 | -9/Scraptown | Core integrity fell below 50% 6988 | -9/Scraptown | Lost 21 allies 7021 | -9/Scraptown | Core integrity fell below 20% 7028 | -9/Scraptown | Identified Expert System 7028 | -9/Scraptown | Destroyed by 4F-DO4(j) with Overtuned Pulse Rifle Last Messages --------------- 07021_ 46-C23(j) heat short circuits Mak. Microdissipator Network. 07021_ Arm. Wheel destroyed. 07021_ Critical hit (Burn: +50). 07021_ Companion Sword surprise attacks OM-OHO(j). 07021_ OM-OHO(j) destroyed. 07022_ Critical hit (Burn: +50). 07023_ Penetrated by Bolt. 07023_ Imp. Treads destroyed. 07024_ 46-C23(j) overheating. 07024_ Slammed into P6-6DS(j). 07024_ Destroyed Mak. Salvage Targeting Computer. 07024_ P6-6DS(j) system corrupted by crushing effect. 07024_ Hrd. Medium Armor Plating destroyed. 07025_ 8K-MFT(j) heat spikes uncontrollably. 07025_ 46-C23(j) overheating. 07025_ Imp. Treads destroyed. 07026_ P6-6DS(j) heat damages Mak. Microdissipator Network. 07028_ Lgt. Treads destroyed. 07028_ Identified Expert System. 07028_ 46-C23(j) destroyed. Map ----- +----------------------------------------------------+ | | | | | | | | | | | | | | | | | | | | | ?????????????????????????????????????????????????? | | ?????????????????????????????????????????????????? | | ?????????????????????????????????????????????????? | | ?????????????????????????????????????????????????? | | ?????????????????????????????????????????????????? | | ?????????????????????????????????????????????????? | | ?????????????????????????????????????????????????? | | ?????????????????????????????????????????????????? | | ?????????????????????????????????????????????????? | | ?????????????????????????????????????????????????? | | ?????????????????????????????????????????????????? | | ??????????????????????????????#####??????????????? | | ??????????????????????????????#"""#??????????????? | | ?????????????????????######???#" "#??????????????? | | ????????????????????##!!#[##??# < #??????????????? | | ?????????"" ##!!"####*=!h@[##%#%![##?????????????? | | ???????? =! =%[ !![==*!!j%!![%%*!=#?????????????? | | ???????? =%[ ![ *%=!%jjj%%=%%==![=#?????????????? | | ???????????##########[!%%=######=###?????????????? | | ????????????????????#!!![##??????????????????????? | | ????????????????????## [##???????????????????????? | | ?????????????????????# ##########???????????????? | | ?????????????????????#!p""""""""""#??????????????? | | ##########?????#?????#%!# """"""""#??????????????? | | #?????"""" ##j #" """""""#??????????????? | | ##"?? """"?# #"" """"""#??????????????? | | ## """ " ?# #"""!%!"""#??????????????? | | ## """"""??# #"""!!=*""#??????????????? | | ## """ "?# #"""==%]["#??????????????? | | ## ""## #"""" !" "#??????????????? | | #?? ## #""" """#??????????????? | | #????"""""??# #" #??????????????? | | #### #####????## #???# ## ########??????????????? | | #### ##########" #####* ## #########?????????????? | | """" """""" """" """""%/"" "## ![#?????????????? | | /!= =%! ## ! !#?????????????? | | % *%!%* ! "## ####?????????????? | | [=! *="## ] #?????????????? | | [%* !%% ## /=#?????????????? | | = %=%! !#?????????????? | +----------------------------------------------------+ Best States ------------- Heat Dissipation 28 Energy Generation 16 Energy Capacity 290 Matter Stores 300 Matter Capacity 300 Sight Range 16 Terrain Scan Density 10 Armor Coverage 450 Evasion (%) 40 Recoil Reduction 3 Item Schematics ----------------- None Robot Schematics ------------------ None Fabricated ------------ Nothing Repaired ---------- Lgt. Treads | 27% | -9/Storage Alien Tech Used ----------------- None Achievements -------------- None Challenges ------------ None Game ------ Seed SwordScrapoidBiocell Manual? 0 Play Time 01:10:35 Cumulative 510.2 hours Start 2025.05.16 @ 19:01:10 End 2025.05.23 @ 11:10:34 Sessions 7 Manual Loads 0 Difficulty Rogue Special Mode None Game No. 209 Rogue 209 Adventurer 0 Explorer 0 Win Type - Total 16 Types 14/0/1/1/0/0/0/0/0/0 Lore% 78 Gallery% 77 Achievement% 70 Wizard Run 0 Options --------- Layout 0 ASCII 0 Keyboard 0 Movement Numpad Keybinds 0 Fullscreen 1 Font 24/X11 Map View 76x50 Zoom Use 0% Tactical HUD 1 Map Filters NONE Filters NONE Steam 1 RUN: 2ae53556-af55-4afd-a929-3d36cbecd245